[Event "*** Titled Tuesday Blitz"]
[Site "Chess.com"]
[Date "2018.08.07"]
[Round "8"]
[White "Arystanner23"]
[Black "NormWeinstein"]
[Result "1/2-1/2"]
[WhiteElo "2561"]
[BlackElo "2404"]
[TimeControl "180+2"]
[EndTime "14:51:08 PDT"]
[Termination "Game drawn by agreement"]

1. e4 {[%clk 0:03:01.9]} 1... c5 {[%clk 0:03:00.1]} 2. Nf3 {[%clk 0:03:02.4]}
2... d6 {[%clk 0:03:01.4]} 3. d4 {[%clk 0:03:03.6]} 3... Nf6 {[%clk 0:03:02]} 4.
Nc3 {[%clk 0:02:59.9]} 4... cxd4 {[%clk 0:03:02.8]} 5. Nxd4 {[%clk 0:03:01.2]}
5... Nc6 {[%clk 0:03:04.2]} 6. Bc4 {[%clk 0:03:00.6]} 6... Qb6 {[%clk
0:03:03.8]} 7. Nxc6 {[%clk 0:02:58]} 7... bxc6 {[%clk 0:03:02.6]} 8. O-O {[%clk
0:02:58.8]} 8... e6 {[%clk 0:03:03.2]} 9. Bb3 {[%clk 0:02:57.7]} 9... Be7 {[%clk
0:03:03.2]} 10. Kh1 {[%clk 0:02:57.7]} 10... O-O {[%clk 0:03:03.1]} 11. f4
{[%clk 0:02:58.4]} 11... d5 {[%clk 0:03:03.8]} 12. e5 {[%clk 0:02:57.7]} 12...
Nd7 {[%clk 0:03:04.5]} 13. Na4 {[%clk 0:02:57.6]} 13... Qc7 {[%clk 0:02:53.3]}
14. c4 {[%clk 0:02:55.9]} 14... Nb6 {[%clk 0:02:35.6]} 15. Nxb6 {[%clk 0:02:49]}
15... axb6 {[%clk 0:02:33.5]} 16. Be3 {[%clk 0:02:49.4]} 16... Ba6 {[%clk
0:02:18.6]} 17. cxd5 {[%clk 0:02:49.5]} 17... cxd5 {[%clk 0:02:10.3]} 18. Rc1
{[%clk 0:02:48.9]} 18... Qb7 {[%clk 0:02:04.3]} 19. Re1 {[%clk 0:02:48.8]} 19...
g6 {[%clk 0:02:04.9]} 20. Qd2 {[%clk 0:02:46.1]} 20... Rac8 {[%clk 0:02:02.9]}
21. Bd4 {[%clk 0:02:46.7]} 21... Bc5 {[%clk 0:01:58.1]} 22. Rc3 {[%clk
0:02:42.5]} 22... Bb4 {[%clk 0:01:54.5]} 23. h3 {[%clk 0:02:33.4]} 23... Bc4
{[%clk 0:01:46]} 24. f5 {[%clk 0:02:01.5]} 24... exf5 {[%clk 0:01:32]} 25. e6
{[%clk 0:01:59.9]} 25... fxe6 {[%clk 0:01:27.3]} 26. Qe3 {[%clk 0:02:00.2]}
26... Bxc3 {[%clk 0:01:24.6]} 27. bxc3 {[%clk 0:02:00.6]} 27... Bxb3 {[%clk
0:01:01.2]} 28. Qxe6+ {[%clk 0:01:38.9]} 28... Qf7 {[%clk 0:00:46.2]} 29. Qe5
{[%clk 0:01:39.1]} 29... Qf6 {[%clk 0:00:46.6]} 30. Qxf6 {[%clk 0:01:40.2]}
30... Rxf6 {[%clk 0:00:46.9]} 31. Bxf6 {[%clk 0:01:42.1]} 31... Bxa2 {[%clk
0:00:47.1]} 32. Re7 {[%clk 0:01:43.6]} 32... Rc6 {[%clk 0:00:38.8]} 33. Bd4
{[%clk 0:01:42.9]} 33... h5 {[%clk 0:00:39.2]} 34. h4 {[%clk 0:01:36.1]} 34...
Bc4 {[%clk 0:00:39.5]} 35. Kh2 {[%clk 0:01:36.5]} 35... Kf8 {[%clk 0:00:36.4]}
36. Rb7 {[%clk 0:01:35.5]} 36... b5 {[%clk 0:00:37.1]} 37. Kg3 {[%clk
0:01:35.6]} 37... Ke8 {[%clk 0:00:37.9]} 38. Kf4 {[%clk 0:01:34.9]} 38... Kd8
{[%clk 0:00:33.1]} 39. Be5 {[%clk 0:01:29.1]} 39... Kc8 {[%clk 0:00:29]} 40. Rg7
{[%clk 0:01:27.2]} 40... Bd3 {[%clk 0:00:24.2]} 41. Kg5 {[%clk 0:01:22]} 41...
Rc4 {[%clk 0:00:18.4]} 42. g3 {[%clk 0:01:05.6]} 42... f4 {[%clk 0:00:18.3]} 43.
gxf4 {[%clk 0:00:56.8]} 43... b4 {[%clk 0:00:15.2]} 44. cxb4 {[%clk 0:00:57.5]}
44... Rxb4 {[%clk 0:00:15.7]} 45. Rc7+ {[%clk 0:00:58.2]} 45... Kd8 {[%clk
0:00:16.6]} 46. Rc5 {[%clk 0:00:59.4]} 46... Be4 {[%clk 0:00:16.7]} 47. Kf6
{[%clk 0:01:00]} 47... Rb6+ {[%clk 0:00:17.6]} 48. Kf7 {[%clk 0:01:01]} 48...
Kd7 {[%clk 0:00:16.2]} 49. Rc7+ {[%clk 0:01:01.5]} 49... Kd8 {[%clk 0:00:17.6]}
50. Ra7 {[%clk 0:01:01.2]} 50... Kc8 {[%clk 0:00:17.5]} 51. Rc7+ {[%clk
0:01:01.3]} 51... Kd8 {[%clk 0:00:17.8]} 52. Ra7 {[%clk 0:01:02.4]} 52... Kc8
{[%clk 0:00:18.7]} 53. Ke7 {[%clk 0:01:03.3]} 53... Rb7+ {[%clk 0:00:13.1]} 54.
Rxb7 {[%clk 0:01:04.3]} 54... Kxb7 {[%clk 0:00:14.5]} 55. Kd6 {[%clk 0:01:04.5]}
55... Ka6 {[%clk 0:00:14.9]} 56. Kc5 {[%clk 0:01:05.3]} 56... Ka5 {[%clk
0:00:15.8]} 57. Kd4 {[%clk 0:01:02.3]} 57... Kb4 {[%clk 0:00:16.4]} 58. Bf6
{[%clk 0:01:03.4]} 58... Kb3 {[%clk 0:00:17.1]} 59. Bd8 {[%clk 0:01:05.1]} 59...
Kc2 {[%clk 0:00:18]} 60. Be7 {[%clk 0:01:06.7]} 60... Kd2 {[%clk 0:00:18.5]} 61.
Bd8 {[%clk 0:01:08.3]} 61... Ke2 {[%clk 0:00:19.2]} 62. Be7 {[%clk 0:01:10.2]}
62... Kf3 {[%clk 0:00:20.2]} 63. Bd8 {[%clk 0:01:12.1]} 63... Kxf4 {[%clk
0:00:20.8]} 64. Be7 {[%clk 0:01:13.8]} 64... Kf5 {[%clk 0:00:21.6]} 65. Bd8
{[%clk 0:01:15.1]} 65... Ke6 {[%clk 0:00:22.4]} 66. Bg5 {[%clk 0:01:15.7]} 66...
Kf5 {[%clk 0:00:22.9]} 67. Bd8 {[%clk 0:01:16.6]} 67... Kg4 {[%clk 0:00:23.7]}
68. Be7 {[%clk 0:01:17.6]} 68... Kg3 {[%clk 0:00:24.2]} 69. Bd8 {[%clk
0:01:18.5]} 69... Kf3 {[%clk 0:00:24.7]} 70. Be7 {[%clk 0:01:19.4]} 70... Kf4
{[%clk 0:00:24.4]} 71. Bd8 {[%clk 0:01:20.4]} 71... Kf5 {[%clk 0:00:25.7]} 72.
Be7 {[%clk 0:01:21.4]} 72... Ke6 {[%clk 0:00:26.6]} 73. Bd8 {[%clk 0:01:22.4]}
73... Bf3 {[%clk 0:00:27.6]} 74. Bg5 {[%clk 0:01:23.2]} 74... Kf5 {[%clk
0:00:27.9]} 75. Bd8 {[%clk 0:01:22.4]} 75... g5 {[%clk 0:00:28.2]} 76. Bxg5
{[%clk 0:01:23.3]} 76... Be4 {[%clk 0:00:27.4]} 77. Bd8 {[%clk 0:01:24.2]} 77...
Kg6 {[%clk 0:00:28.7]} 78. Bg5 {[%clk 0:01:25.1]} 1/2-1/2

[Event "*** Titled Tuesday Blitz"]
[Site "Chess.com"]
[Date "2018.08.07"]
[Round "8"]
[White "PaulfromSPb"]
[Black "Litti"]
[Result "1-0"]
[WhiteElo "2581"]
[BlackElo "2459"]
[TimeControl "180+2"]
[EndTime "14:51:11 PDT"]
[Termination "PaulfromSPb won by resignation"]

1. e4 {[%clk 0:03:00.4]} 1... c5 {[%clk 0:03:00.4]} 2. Ne2 {[%clk 0:02:55.1]}
2... e6 {[%clk 0:03:01.1]} 3. g3 {[%clk 0:02:55.3]} 3... Nf6 {[%clk 0:03:01.4]}
4. Bg2 {[%clk 0:02:56.3]} 4... d5 {[%clk 0:03:01.8]} 5. exd5 {[%clk 0:02:55.9]}
5... exd5 {[%clk 0:03:03.7]} 6. d4 {[%clk 0:02:56.6]} 6... Nc6 {[%clk
0:03:04.1]} 7. O-O {[%clk 0:02:56.5]} 7... Bg4 {[%clk 0:03:03.9]} 8. h3 {[%clk
0:02:56.5]} 8... Bh5 {[%clk 0:03:04.4]} 9. Re1 {[%clk 0:02:44.6]} 9... Be7
{[%clk 0:03:02.1]} 10. dxc5 {[%clk 0:02:42.5]} 10... O-O {[%clk 0:03:02.6]} 11.
g4 {[%clk 0:02:43.5]} 11... Bg6 {[%clk 0:03:03.2]} 12. Be3 {[%clk 0:02:39]}
12... Re8 {[%clk 0:02:53]} 13. Nbc3 {[%clk 0:02:33.1]} 13... Qa5 {[%clk
0:02:48.5]} 14. a3 {[%clk 0:02:25.4]} 14... Rad8 {[%clk 0:02:43.1]} 15. b4
{[%clk 0:02:24.6]} 15... Qc7 {[%clk 0:02:42.3]} 16. Nd4 {[%clk 0:02:23.2]} 16...
Ne5 {[%clk 0:02:34.2]} 17. Bf4 {[%clk 0:01:59.3]} 17... Bf8 {[%clk 0:02:33.4]}
18. Bh2 {[%clk 0:01:54.7]} 18... Ne4 {[%clk 0:02:28.6]} 19. Ncb5 {[%clk
0:01:25.6]} 19... Qb8 {[%clk 0:02:25.2]} 20. f3 {[%clk 0:01:25.7]} 20... a6
{[%clk 0:02:14.2]} 21. fxe4 {[%clk 0:01:26.3]} 21... dxe4 {[%clk 0:02:01.4]} 22.
Nc3 {[%clk 0:01:10.5]} 22... a5 {[%clk 0:01:59.4]} 23. Nce2 {[%clk 0:01:05.7]}
23... h5 {[%clk 0:01:45.5]} 24. Qc1 {[%clk 0:00:59.3]} 24... hxg4 {[%clk
0:01:43.7]} 25. hxg4 {[%clk 0:01:00.1]} 25... Qc8 {[%clk 0:01:38.1]} 26. Bxe5
{[%clk 0:00:50]} 26... Rxe5 {[%clk 0:01:39.9]} 27. Qf4 {[%clk 0:00:49.7]} 27...
Rde8 {[%clk 0:01:25.8]} 28. Ng3 {[%clk 0:00:48.1]} 28... e3 {[%clk 0:01:19.5]}
29. Ngf5 {[%clk 0:00:47.7]} 29... e2 {[%clk 0:01:07.4]} 30. c3 {[%clk
0:00:46.9]} 30... Qd8 {[%clk 0:00:52.7]} 31. Ra2 {[%clk 0:00:44.9]} 31... Bxf5
{[%clk 0:00:50.1]} 32. gxf5 {[%clk 0:00:42.8]} 32... axb4 {[%clk 0:00:38.3]} 33.
axb4 {[%clk 0:00:42.7]} 33... Re3 {[%clk 0:00:24.3]} 34. Raxe2 {[%clk
0:00:36.7]} 34... Rxe2 {[%clk 0:00:24.6]} 35. Rxe2 {[%clk 0:00:37.7]} 35... Rxe2
{[%clk 0:00:25.1]} 36. Nxe2 {[%clk 0:00:38.2]} 36... Qd1+ {[%clk 0:00:26.6]} 37.
Bf1 {[%clk 0:00:36.9]} 37... Be7 {[%clk 0:00:22.3]} 38. Qb8+ {[%clk 0:00:35.1]}
38... Kh7 {[%clk 0:00:22.8]} 39. Qh2+ {[%clk 0:00:34.5]} 39... Kg8 {[%clk
0:00:23.7]} 40. Qb8+ {[%clk 0:00:35.2]} 40... Kh7 {[%clk 0:00:24.7]} 41. Qxb7
{[%clk 0:00:35.9]} 41... Bg5 {[%clk 0:00:25.5]} 42. Qe4 {[%clk 0:00:34.2]} 42...
Qd2 {[%clk 0:00:23.3]} 43. f6+ {[%clk 0:00:33.5]} 43... g6 {[%clk 0:00:23.4]}
44. c6 {[%clk 0:00:33.9]} 44... Be3+ {[%clk 0:00:22.8]} 45. Kg2 {[%clk
0:00:34.4]} 45... Bb6 {[%clk 0:00:23.6]} 46. Qe5 {[%clk 0:00:28.5]} 46... Qc2
{[%clk 0:00:15.3]} 47. b5 {[%clk 0:00:26.7]} 47... Qd2 {[%clk 0:00:14.4]} 48.
Qh2+ {[%clk 0:00:25.6]} 48... Kg8 {[%clk 0:00:15.1]} 49. Qb8+ {[%clk 0:00:26.9]}
49... Bd8 {[%clk 0:00:15.5]} 50. c7 {[%clk 0:00:26.7]} 50... Qd5+ {[%clk
0:00:16.3]} 51. Kf2 {[%clk 0:00:22.3]} 51... Qc5+ {[%clk 0:00:17.2]} 52. Ke1
{[%clk 0:00:23.3]} 52... Qxc7 {[%clk 0:00:17.8]} 53. Qxc7 {[%clk 0:00:24]} 53...
Bxc7 {[%clk 0:00:19.7]} 54. c4 {[%clk 0:00:25]} 54... Bb6 {[%clk 0:00:20.3]} 55.
Nc3 {[%clk 0:00:25.3]} 55... Kf8 {[%clk 0:00:22.2]} 56. Nd5 {[%clk 0:00:25.8]}
56... Ba5+ {[%clk 0:00:21.8]} 57. Ke2 {[%clk 0:00:25.4]} 57... Ke8 {[%clk
0:00:23.7]} 58. Bh3 {[%clk 0:00:26]} 58... Kd8 {[%clk 0:00:24.4]} 59. b6 {[%clk
0:00:25.7]} 59... Bxb6 {[%clk 0:00:23.3]} 60. Nxb6 {[%clk 0:00:26.4]} 60... Kc7
{[%clk 0:00:25.2]} 61. Nd5+ {[%clk 0:00:27.3]} 61... Kd6 {[%clk 0:00:27.1]} 62.
Kd3 {[%clk 0:00:28.3]} 62... Kc5 {[%clk 0:00:28.3]} 63. Bd7 {[%clk 0:00:28.6]}
63... Kd6 {[%clk 0:00:29.5]} 64. Be8 {[%clk 0:00:29.9]} 64... g5 {[%clk
0:00:29.4]} 65. Bxf7 {[%clk 0:00:30.1]} 1-0

[Event "*** Titled Tuesday Blitz"]
[Site "Chess.com"]
[Date "2018.08.07"]
[Round "8"]
[White "nitpicker"]
[Black "Morshynska"]
[Result "1-0"]
[WhiteElo "2131"]
[BlackElo "2126"]
[TimeControl "180+2"]
[EndTime "14:51:31 PDT"]
[Termination "nitpicker won by resignation"]

1. d4 {[%clk 0:03:01.9]} 1... Nf6 {[%clk 0:02:59.9]} 2. c4 {[%clk 0:03:01.4]}
2... e6 {[%clk 0:03:00.4]} 3. g3 {[%clk 0:03:00.6]} 3... Bb4+ {[%clk 0:02:59]}
4. Bd2 {[%clk 0:02:59.1]} 4... Qe7 {[%clk 0:02:58.5]} 5. Bg2 {[%clk 0:02:59.2]}
5... Nc6 {[%clk 0:02:57.4]} 6. Nf3 {[%clk 0:02:59.6]} 6... Ne4 {[%clk
0:02:55.7]} 7. O-O {[%clk 0:02:57.5]} 7... Nxd2 {[%clk 0:02:54.3]} 8. Nbxd2
{[%clk 0:02:58]} 8... d5 {[%clk 0:02:41]} 9. Rc1 {[%clk 0:02:54.1]} 9... O-O
{[%clk 0:02:26.5]} 10. a3 {[%clk 0:02:42.1]} 10... Bxd2 {[%clk 0:02:24.9]} 11.
Qxd2 {[%clk 0:02:43.4]} 11... Rd8 {[%clk 0:01:55.5]} 12. Qc3 {[%clk 0:02:06.1]}
12... Bd7 {[%clk 0:01:38.7]} 13. b4 {[%clk 0:02:03.1]} 13... dxc4 {[%clk
0:01:36.2]} 14. Qxc4 {[%clk 0:02:01.4]} 14... a6 {[%clk 0:01:33.4]} 15. e4
{[%clk 0:01:37.5]} 15... Rac8 {[%clk 0:01:29.5]} 16. Qc5 {[%clk 0:01:29.4]}
16... Qxc5 {[%clk 0:01:17.9]} 17. Rxc5 {[%clk 0:01:24.5]} 17... b6 {[%clk
0:00:58.7]} 18. Rc2 {[%clk 0:01:14.1]} 18... Be8 {[%clk 0:00:56.7]} 19. Rd1
{[%clk 0:01:02.8]} 19... Na7 {[%clk 0:00:44.7]} 20. Bf1 {[%clk 0:00:30.7]} 20...
Ba4 {[%clk 0:00:38.1]} 21. Rcd2 {[%clk 0:00:19.6]} 21... Bxd1 {[%clk 0:00:35.5]}
22. Rxd1 {[%clk 0:00:21.5]} 22... Nb5 {[%clk 0:00:32.7]} 23. a4 {[%clk
0:00:18.6]} 23... Nc3 {[%clk 0:00:32.9]} 24. Rc1 {[%clk 0:00:14.6]} 24... Nxe4
{[%clk 0:00:27.9]} 25. Bxa6 {[%clk 0:00:14.7]} 25... Ra8 {[%clk 0:00:28.7]} 26.
Bb7 {[%clk 0:00:15.7]} 26... Rxa4 {[%clk 0:00:19.7]} 27. Bxe4 {[%clk 0:00:16.2]}
27... Rxb4 {[%clk 0:00:18.7]} 28. Rxc7 {[%clk 0:00:17]} 28... f5 {[%clk
0:00:19]} 29. Bb7 {[%clk 0:00:14.2]} 29... h6 {[%clk 0:00:17.9]} 30. Bc8 {[%clk
0:00:13.2]} 30... Rd6 {[%clk 0:00:15.4]} 31. Re7 {[%clk 0:00:10.8]} 31... g5
{[%clk 0:00:11.4]} 32. Bxe6+ {[%clk 0:00:10.3]} 32... Kf8 {[%clk 0:00:11.6]} 33.
Rf7+ {[%clk 0:00:11.3]} 33... Ke8 {[%clk 0:00:12.5]} 34. d5 {[%clk 0:00:12.1]}
34... f4 {[%clk 0:00:11.7]} 35. Ne5 {[%clk 0:00:09.8]} 35... fxg3 {[%clk
0:00:09.5]} 36. hxg3 {[%clk 0:00:09.5]} 36... Re4 {[%clk 0:00:08.3]} 37. Nc6
{[%clk 0:00:09.4]} 37... Re1+ {[%clk 0:00:07.1]} 38. Kg2 {[%clk 0:00:09.6]}
38... b5 {[%clk 0:00:06.9]} 39. Rc7 {[%clk 0:00:06.1]} 39... Kf8 {[%clk
0:00:05.3]} 40. Rc8+ {[%clk 0:00:05]} 40... Kg7 {[%clk 0:00:03.1]} 41. Nd4
{[%clk 0:00:06.1]} 41... b4 {[%clk 0:00:02.9]} 42. Nf5+ {[%clk 0:00:06.8]} 42...
Kf6 {[%clk 0:00:04.8]} 43. Nxd6 {[%clk 0:00:07.9]} 43... b3 {[%clk 0:00:06.5]}
44. Nc4 {[%clk 0:00:08]} 44... Rc1 {[%clk 0:00:03.9]} 45. Rb8 {[%clk 0:00:06.4]}
45... Rxc4 {[%clk 0:00:03.4]} 46. Rxb3 {[%clk 0:00:07.9]} 46... Rd4 {[%clk
0:00:04.2]} 47. Rf3+ {[%clk 0:00:07.6]} 47... Kg6 {[%clk 0:00:04.2]} 48. Bf7+
{[%clk 0:00:06.5]} 48... Kg7 {[%clk 0:00:04.9]} 49. Be6 {[%clk 0:00:06.2]} 49...
h5 {[%clk 0:00:04.5]} 50. Kf1 {[%clk 0:00:06.3]} 50... h4 {[%clk 0:00:04]} 51.
gxh4 {[%clk 0:00:06.5]} 51... gxh4 {[%clk 0:00:05.8]} 52. Ke2 {[%clk 0:00:07.9]}
52... Kg6 {[%clk 0:00:05.6]} 53. Ke3 {[%clk 0:00:09]} 53... Rd1 {[%clk
0:00:06.3]} 54. Ke4 {[%clk 0:00:09]} 54... Kg5 {[%clk 0:00:07]} 55. Rd3 {[%clk
0:00:08.1]} 55... Re1+ {[%clk 0:00:07.6]} 56. Kf3 {[%clk 0:00:09.1]} 56... Rh1
{[%clk 0:00:02]} 57. d6 {[%clk 0:00:09.7]} 1-0

[Event "*** Titled Tuesday Blitz"]
[Site "Chess.com"]
[Date "2018.08.07"]
[Round "8"]
[White "ChessicallyInclined"]
[Black "saraswathii"]
[Result "0-1"]
[WhiteElo "2345"]
[BlackElo "2306"]
[TimeControl "180+2"]
[EndTime "14:51:35 PDT"]
[Termination "saraswathii won by resignation"]

1. b3 {[%clk 0:03:01.9]} 1... Nf6 {[%clk 0:03:00.1]} 2. Bb2 {[%clk 0:03:02.2]}
2... g6 {[%clk 0:03:01.4]} 3. e4 {[%clk 0:03:02.6]} 3... Bg7 {[%clk 0:03:02.9]}
4. e5 {[%clk 0:03:03.8]} 4... Nd5 {[%clk 0:03:03.6]} 5. c4 {[%clk 0:03:04.6]}
5... Nb6 {[%clk 0:03:04.7]} 6. d4 {[%clk 0:03:05.7]} 6... d6 {[%clk 0:03:05.6]}
7. Nf3 {[%clk 0:03:07.1]} 7... dxe5 {[%clk 0:03:04.4]} 8. Nxe5 {[%clk 0:03:09]}
8... Bxe5 {[%clk 0:03:04.4]} 9. dxe5 {[%clk 0:03:10.9]} 9... Qxd1+ {[%clk
0:03:05.8]} 10. Kxd1 {[%clk 0:03:12]} 10... O-O {[%clk 0:03:05.5]} 11. Nd2
{[%clk 0:03:11.9]} 11... Bf5 {[%clk 0:03:06.5]} 12. h3 {[%clk 0:03:08.2]} 12...
h5 {[%clk 0:03:06.9]} 13. Be2 {[%clk 0:03:03.9]} 13... Rd8 {[%clk 0:03:06.6]}
14. g4 {[%clk 0:03:02.3]} 14... Bd3 {[%clk 0:03:07.5]} 15. Bxd3 {[%clk 0:03:03]}
15... Rxd3 {[%clk 0:03:07.8]} 16. Kc2 {[%clk 0:03:04.6]} 16... Rd7 {[%clk
0:03:06.8]} 17. e6 {[%clk 0:03:03.1]} 17... Rd6 {[%clk 0:03:04.5]} 18. exf7+
{[%clk 0:03:03]} 18... Kxf7 {[%clk 0:03:06.4]} 19. g5 {[%clk 0:03:04.2]} 19...
Nc6 {[%clk 0:03:05.9]} 20. Rae1 {[%clk 0:02:57.4]} 20... Re6 {[%clk 0:03:05]}
21. Ne4 {[%clk 0:02:56.8]} 21... Nb4+ {[%clk 0:03:00.1]} 22. Kb1 {[%clk
0:02:51.4]} 22... Nd3 {[%clk 0:03:00.6]} 23. Re3 {[%clk 0:02:52.8]} 23... Rd8
{[%clk 0:02:56.9]} 24. Rd1 {[%clk 0:02:47.1]} 24... Rd7 {[%clk 0:02:52.1]} 25.
c5 {[%clk 0:02:31.9]} 25... Nxb2 {[%clk 0:02:47.2]} 26. Rxd7 {[%clk 0:02:27.5]}
26... Nxd7 {[%clk 0:02:49.1]} 27. Kxb2 {[%clk 0:02:28]} 27... Ne5 {[%clk
0:02:48.2]} 28. Kc3 {[%clk 0:02:22.3]} 28... Kg7 {[%clk 0:02:42.3]} 29. Nd2
{[%clk 0:02:18.1]} 29... Kf7 {[%clk 0:02:39.6]} 30. a4 {[%clk 0:02:05.3]} 30...
Nc6 {[%clk 0:02:37.7]} 31. b4 {[%clk 0:01:48.6]} 31... Rxe3+ {[%clk 0:02:35.8]}
32. fxe3 {[%clk 0:01:50.5]} 32... Ke6 {[%clk 0:02:37.4]} 33. Nf3 {[%clk
0:01:44.8]} 33... Kf5 {[%clk 0:02:35.8]} 34. b5 {[%clk 0:01:36.4]} 34... Ne5
{[%clk 0:02:34.1]} 35. Nd4+ {[%clk 0:01:36.9]} 35... Kxg5 {[%clk 0:02:30.4]} 36.
Ne6+ {[%clk 0:01:38]} 36... Kh4 {[%clk 0:02:28.8]} 37. Nxc7 {[%clk 0:01:38.9]}
37... Kxh3 {[%clk 0:02:29.4]} 38. a5 {[%clk 0:01:20]} 38... g5 {[%clk
0:02:30.3]} 39. c6 {[%clk 0:01:10.8]} 39... bxc6 {[%clk 0:02:30.5]} 40. b6
{[%clk 0:01:11.6]} 40... axb6 {[%clk 0:02:31.5]} 41. a6 {[%clk 0:01:12.9]} 41...
g4 {[%clk 0:02:22]} 42. a7 {[%clk 0:01:08.4]} 42... g3 {[%clk 0:02:23.1]} 43.
Ne6 {[%clk 0:01:08.8]} 43... Ng6 {[%clk 0:02:16.4]} 44. a8=Q {[%clk 0:01:02.1]}
44... g2 {[%clk 0:02:17.3]} 45. Qg8 {[%clk 0:00:21.2]} 45... g1=Q {[%clk
0:02:11.8]} 46. Nf4+ {[%clk 0:00:22]} 46... Kh2 {[%clk 0:02:10.4]} 47. Nxg6
{[%clk 0:00:17.2]} 47... Qxe3+ {[%clk 0:02:09.2]} 48. Kc2 {[%clk 0:00:17.1]}
48... h4 {[%clk 0:02:05]} 49. Qf7 {[%clk 0:00:16.2]} 49... h3 {[%clk 0:02:03.5]}
50. Nxe7 {[%clk 0:00:14]} 50... Kg1 {[%clk 0:02:03.2]} 51. Nf5 {[%clk
0:00:14.9]} 51... Qf2+ {[%clk 0:02:02.9]} 52. Kd3 {[%clk 0:00:14.4]} 52... h2
{[%clk 0:02:03.6]} 53. Qg7+ {[%clk 0:00:13.6]} 53... Qg2 {[%clk 0:02:03.9]} 54.
Qd4+ {[%clk 0:00:11]} 54... Qf2 {[%clk 0:02:00]} 55. Qg4+ {[%clk 0:00:11.7]}
55... Qg2 {[%clk 0:02:00.8]} 56. Qd4+ {[%clk 0:00:11]} 56... Kh1 {[%clk
0:02:01.1]} 57. Qe3 {[%clk 0:00:04.7]} 57... Qd5+ {[%clk 0:01:52.4]} 58. Nd4
{[%clk 0:00:04.9]} 58... c5 {[%clk 0:01:48.4]} 59. Qe1+ {[%clk 0:00:05.8]} 59...
Kg2 {[%clk 0:01:48.9]} 60. Qe2+ {[%clk 0:00:06.5]} 60... Kg3 {[%clk 0:01:48.9]}
61. Qe3+ {[%clk 0:00:08]} 61... Kg4 {[%clk 0:01:46.9]} 62. Qe2+ {[%clk
0:00:09.5]} 62... Kg5 {[%clk 0:01:46.8]} 63. Qe7+ {[%clk 0:00:10.4]} 63... Kg6
{[%clk 0:01:44.4]} 64. Qe8+ {[%clk 0:00:11.7]} 64... Kf6 {[%clk 0:01:45.5]} 65.
Qh8+ {[%clk 0:00:09.5]} 65... Ke7 {[%clk 0:01:45.5]} 66. Qh7+ {[%clk 0:00:09]}
66... Kd8 {[%clk 0:01:44.5]} 67. Qh8+ {[%clk 0:00:10.3]} 67... Kd7 {[%clk
0:01:44.6]} 68. Qh3+ {[%clk 0:00:06.6]} 68... Kc7 {[%clk 0:01:40.1]} 69. Qxh2+
{[%clk 0:00:07.8]} 69... Kb7 {[%clk 0:01:41.1]} 70. Qh7+ {[%clk 0:00:05.7]}
70... Ka6 {[%clk 0:01:41.7]} 71. Qg7 {[%clk 0:00:02.9]} 71... Qxd4+ {[%clk
0:01:30.7]} 72. Qxd4 {[%clk 0:00:04]} 72... cxd4 {[%clk 0:01:32.6]} 73. Kxd4
{[%clk 0:00:05.9]} 73... Kb5 {[%clk 0:01:32.3]} 74. Kc3 {[%clk 0:00:06.8]} 74...
Ka4 {[%clk 0:01:33.4]} 75. Kb2 {[%clk 0:00:08.2]} 75... Kb4 {[%clk 0:01:34.5]}
76. Kc2 {[%clk 0:00:09.3]} 76... Ka3 {[%clk 0:01:35.4]} 77. Kb1 {[%clk
0:00:10.6]} 77... b5 {[%clk 0:01:27.5]} 78. Ka1 {[%clk 0:00:11]} 78... b4 {[%clk
0:01:27.5]} 79. Kb1 {[%clk 0:00:11]} 79... Kb3 {[%clk 0:01:28.8]} 80. Ka1 {[%clk
0:00:11.7]} 80... Kc2 {[%clk 0:01:29.9]} 81. Ka2 {[%clk 0:00:12.7]} 81... b3+
{[%clk 0:01:31.8]} 0-1